[Event "*** Titled Tuesday Blitz"]
[Site "Chess.com"]
[Date "2020.05.05"]
[Round "2"]
[White "temus_galaktionov"]
[Black "DaggiGretarsson"]
[Result "1-0"]
[WhiteElo "2775"]
[BlackElo "2520"]
[TimeControl "180+1"]
[EndTime "10:19:45 PDT"]
[Termination "temus_galaktionov won on time"]

1. d4 {[%clk 0:03:00.9]} 1... g6 {[%clk 0:02:59.5]} 2. Nf3 {[%clk 0:02:59.9]}
2... Bg7 {[%clk 0:02:59.6]} 3. c4 {[%clk 0:02:59.3]} 3... e6 {[%clk 0:02:59.7]}
4. Nc3 {[%clk 0:02:58.7]} 4... Ne7 {[%clk 0:02:59.6]} 5. e4 {[%clk 0:02:56.9]}
5... d5 {[%clk 0:02:59.5]} 6. e5 {[%clk 0:02:41.8]} 6... Nbc6 {[%clk 0:02:57.9]}
7. Bg5 {[%clk 0:02:33.6]} 7... h6 {[%clk 0:02:56.2]} 8. Bf4 {[%clk 0:02:33.4]}
8... b6 {[%clk 0:02:49.8]} 9. Qd2 {[%clk 0:02:32.3]} 9... Bb7 {[%clk 0:02:46.6]}
10. Be2 {[%clk 0:02:24.7]} 10... g5 {[%clk 0:02:15.8]} 11. Be3 {[%clk
0:02:22.4]} 11... dxc4 {[%clk 0:02:02.6]} 12. Bxc4 {[%clk 0:02:21]} 12... Nf5
{[%clk 0:02:02.3]} 13. Rd1 {[%clk 0:02:17.3]} 13... g4 {[%clk 0:01:54.7]} 14.
Ng1 {[%clk 0:02:16.2]} 14... Nce7 {[%clk 0:01:53.5]} 15. Bb5+ {[%clk 0:02:15.2]}
15... Kf8 {[%clk 0:01:51.4]} 16. Bf1 {[%clk 0:02:14.2]} 16... h5 {[%clk
0:01:47.8]} 17. h3 {[%clk 0:02:11.7]} 17... g3 {[%clk 0:01:45.8]} 18. Nf3 {[%clk
0:02:11]} 18... Bxf3 {[%clk 0:01:29.1]} 19. gxf3 {[%clk 0:02:10.8]} 19... Nh4
{[%clk 0:01:29.1]} 20. Ke2 {[%clk 0:01:52.1]} 20... g2 {[%clk 0:01:19.5]} 21.
Bxg2 {[%clk 0:01:52.1]} 21... Nxg2 {[%clk 0:01:19.2]} 22. Bg5 {[%clk 0:01:53]}
22... Qc8 {[%clk 0:00:58.2]} 23. Kf1 {[%clk 0:01:46.8]} 23... Rg8 {[%clk
0:00:53.2]} 24. Kxg2 {[%clk 0:01:43.1]} 24... f6 {[%clk 0:00:45.9]} 25. exf6
{[%clk 0:01:30.2]} 25... Bxf6 {[%clk 0:00:45.7]} 26. h4 {[%clk 0:01:30.6]} 26...
Nf5 {[%clk 0:00:37]} 27. Ne4 {[%clk 0:01:27.8]} 27... Bxd4 {[%clk 0:00:36.2]}
28. Qf4 {[%clk 0:01:25.7]} 28... Qd7 {[%clk 0:00:25.4]} 29. Nf6 {[%clk
0:01:15.6]} 29... Qd6 {[%clk 0:00:19.8]} 30. Qxd6+ {[%clk 0:01:14.3]} 30... cxd6
{[%clk 0:00:19.5]} 31. Nxg8 {[%clk 0:01:14.3]} 31... Kxg8 {[%clk 0:00:19.6]} 32.
b3 {[%clk 0:01:14]} 32... Kf7 {[%clk 0:00:18.3]} 33. Rc1 {[%clk 0:01:11.2]}
33... Bc5 {[%clk 0:00:17.8]} 34. f4 {[%clk 0:01:07.2]} 34... a5 {[%clk
0:00:16.8]} 35. Kf3 {[%clk 0:01:03.4]} 35... Nd4+ {[%clk 0:00:16.1]} 36. Ke4
{[%clk 0:00:56.2]} 36... Nc6 {[%clk 0:00:15.6]} 37. Rh2 {[%clk 0:00:51]} 37...
d5+ {[%clk 0:00:14.8]} 38. Kd3 {[%clk 0:00:45.6]} 38... Nb4+ {[%clk 0:00:10.8]}
39. Ke2 {[%clk 0:00:44.6]} 39... Nxa2 {[%clk 0:00:10.8]} 40. Rg1 {[%clk
0:00:42.9]} 40... Nc3+ {[%clk 0:00:09.9]} 41. Kd3 {[%clk 0:00:42.6]} 41... Ne4
{[%clk 0:00:09.7]} 42. Ke2 {[%clk 0:00:38.9]} 42... a4 {[%clk 0:00:08.8]} 43.
bxa4 {[%clk 0:00:38]} 43... Rxa4 {[%clk 0:00:08.7]} 44. Rhg2 {[%clk 0:00:34.9]}
44... Nxf2 {[%clk 0:00:08.2]} 45. Bh6 {[%clk 0:00:23.1]} 45... Ng4 {[%clk
0:00:07.5]} 46. Bg5 {[%clk 0:00:21.8]} 46... Bxg1 {[%clk 0:00:06.5]} 47. Rxg1
{[%clk 0:00:22.7]} 47... b5 {[%clk 0:00:04.4]} 48. Rc1 {[%clk 0:00:21.9]} 48...
Rc4 {[%clk 0:00:03.9]} 49. Ra1 {[%clk 0:00:21.9]} 49... b4 {[%clk 0:00:03.9]}
50. Ra7+ {[%clk 0:00:21.5]} 50... Kg6 {[%clk 0:00:03.9]} 51. Rb7 {[%clk
0:00:21.7]} 51... Kf5 {[%clk 0:00:03.3]} 52. Kd3 {[%clk 0:00:21.9]} 52... Rc3+
{[%clk 0:00:02.4]} 53. Kd4 {[%clk 0:00:19]} 53... Rc4+ {[%clk 0:00:02.3]} 54.
Kd3 {[%clk 0:00:19.1]} 54... Nf2+ {[%clk 0:00:02.4]} 55. Ke3 {[%clk 0:00:18.4]}
55... Ne4 {[%clk 0:00:03]} 56. Rf7+ {[%clk 0:00:17.4]} 56... Kg4 {[%clk
0:00:02.8]} 57. Rb7 {[%clk 0:00:17.8]} 57... Nc5 {[%clk 0:00:02.1]} 58. Rb6
{[%clk 0:00:15.7]} 58... b3 {[%clk 0:00:02.3]} 59. Be7 {[%clk 0:00:14.4]} 59...
Rc2 {[%clk 0:00:01.1]} 60. Bxc5 {[%clk 0:00:12.6]} 1-0

[Event "*** Titled Tuesday Blitz"]
[Site "Chess.com"]
[Date "2020.05.05"]
[Round "2"]
[White "shnitez"]
[Black "A-Fier"]
[Result "0-1"]
[WhiteElo "2525"]
[BlackElo "2791"]
[TimeControl "180+1"]
[EndTime "10:19:48 PDT"]
[Termination "A-Fier won on time"]

1. e4 {[%clk 0:03:00.9]} 1... c5 {[%clk 0:02:58.2]} 2. Nf3 {[%clk 0:02:59.6]}
2... e6 {[%clk 0:02:57.9]} 3. b3 {[%clk 0:02:58.4]} 3... Nc6 {[%clk 0:02:57.7]}
4. Bb2 {[%clk 0:02:57.8]} 4... a6 {[%clk 0:02:58.1]} 5. g3 {[%clk 0:02:56.8]}
5... Qc7 {[%clk 0:02:52.5]} 6. Bg2 {[%clk 0:02:56]} 6... Nf6 {[%clk 0:02:51.9]}
7. e5 {[%clk 0:02:46.8]} 7... Ng4 {[%clk 0:02:51.4]} 8. Qe2 {[%clk 0:02:46.3]}
8... Be7 {[%clk 0:02:49.9]} 9. h3 {[%clk 0:02:43.6]} 9... Nh6 {[%clk 0:02:50]}
10. g4 {[%clk 0:02:43.6]} 10... b6 {[%clk 0:02:46]} 11. Nc3 {[%clk 0:02:27.8]}
11... Bb7 {[%clk 0:02:45.9]} 12. Ne4 {[%clk 0:02:27.8]} 12... O-O-O {[%clk
0:02:33.9]} 13. Nd6+ {[%clk 0:02:19.2]} 13... Bxd6 {[%clk 0:02:12.5]} 14. exd6
{[%clk 0:02:20.1]} 14... Qxd6 {[%clk 0:02:13.2]} 15. Bxg7 {[%clk 0:02:19.7]}
15... Qf4 {[%clk 0:02:13.8]} 16. Qe3 {[%clk 0:01:53.1]} 16... Qxe3+ {[%clk
0:02:05.5]} 17. dxe3 {[%clk 0:01:50.4]} 17... Nb4 {[%clk 0:02:06.4]} 18. O-O-O
{[%clk 0:01:29.9]} 18... Nxa2+ {[%clk 0:02:01.7]} 19. Kb2 {[%clk 0:01:30]} 19...
Nb4 {[%clk 0:02:02.6]} 20. Bxh6 {[%clk 0:01:29.7]} 20... Rhg8 {[%clk 0:02:01.5]}
21. Bg5 {[%clk 0:01:24.7]} 21... Rdf8 {[%clk 0:01:53.1]} 22. Be7 {[%clk
0:01:22.7]} 22... Re8 {[%clk 0:01:52.5]} 23. Bf6 {[%clk 0:01:22.4]} 23... Nd5
{[%clk 0:01:52.5]} 24. Be5 {[%clk 0:01:17]} 24... f5 {[%clk 0:01:46.7]} 25. g5
{[%clk 0:01:15.6]} 25... Ne7 {[%clk 0:01:35.9]} 26. h4 {[%clk 0:01:13.7]} 26...
h5 {[%clk 0:01:35.3]} 27. Ne1 {[%clk 0:01:11.3]} 27... d5 {[%clk 0:01:31.1]} 28.
Nd3 {[%clk 0:01:08.7]} 28... Ng6 {[%clk 0:01:31]} 29. Bf6 {[%clk 0:01:07]} 29...
e5 {[%clk 0:01:29.8]} 30. c4 {[%clk 0:01:04.9]} 30... d4 {[%clk 0:01:23.3]} 31.
Bxb7+ {[%clk 0:01:04.2]} 31... Kxb7 {[%clk 0:01:24.2]} 32. exd4 {[%clk
0:01:03.1]} 32... cxd4 {[%clk 0:01:23.5]} 33. f4 {[%clk 0:01:00.6]} 33... e4
{[%clk 0:01:22.6]} 34. Ne5 {[%clk 0:01:00.5]} 34... d3 {[%clk 0:01:11.6]} 35.
Nxg6 {[%clk 0:00:59.1]} 35... Rxg6 {[%clk 0:01:12.5]} 36. Kc3 {[%clk 0:00:57.9]}
36... Rgg8 {[%clk 0:01:07.9]} 37. Kd4 {[%clk 0:00:57.6]} 37... Kc6 {[%clk
0:01:07.3]} 38. Ra1 {[%clk 0:00:53.9]} 38... a5 {[%clk 0:01:06.8]} 39. Rhb1
{[%clk 0:00:52.3]} 39... Ra8 {[%clk 0:00:43]} 40. b4 {[%clk 0:00:49.4]} 40...
axb4 {[%clk 0:00:43.9]} 41. Rxa8 {[%clk 0:00:48.8]} 41... Rxa8 {[%clk
0:00:44.8]} 42. g6 {[%clk 0:00:45.5]} 42... Kd7 {[%clk 0:00:36.9]} 43. g7 {[%clk
0:00:45]} 43... Ke6 {[%clk 0:00:37.3]} 44. Be5 {[%clk 0:00:43.6]} 44... Kf7
{[%clk 0:00:37.6]} 45. Ke3 {[%clk 0:00:41.3]} 45... Ra2 {[%clk 0:00:37.4]} 46.
Bb2 {[%clk 0:00:34.7]} 46... Kg8 {[%clk 0:00:32.4]} 47. Kd2 {[%clk 0:00:33.2]}
47... Ra7 {[%clk 0:00:28.9]} 48. Ke3 {[%clk 0:00:33.1]} 48... Ra2 {[%clk
0:00:28.8]} 49. Kd2 {[%clk 0:00:32.7]} 49... Ra7 {[%clk 0:00:28.8]} 50. Ra1
{[%clk 0:00:31.8]} 50... Rxa1 {[%clk 0:00:23.4]} 51. Bxa1 {[%clk 0:00:32.7]}
51... b3 {[%clk 0:00:22.2]} 52. Bb2 {[%clk 0:00:30]} 52... Kf7 {[%clk
0:00:22.5]} 53. Ke3 {[%clk 0:00:29.6]} 53... Kg8 {[%clk 0:00:22.5]} 54. Kd2
{[%clk 0:00:29.2]} 54... Kf7 {[%clk 0:00:22.9]} 55. Bd4 {[%clk 0:00:28.9]} 55...
Kg8 {[%clk 0:00:22.8]} 56. Kc3 {[%clk 0:00:23.2]} 56... Kf7 {[%clk 0:00:19.7]}
57. Kxb3 {[%clk 0:00:22.3]} 57... Kg8 {[%clk 0:00:19.8]} 58. Kc3 {[%clk
0:00:21.7]} 58... Kf7 {[%clk 0:00:20.1]} 59. Kd2 {[%clk 0:00:22]} 59... Kg8
{[%clk 0:00:20.5]} 60. Bxb6 {[%clk 0:00:22]} 60... Kxg7 {[%clk 0:00:20.9]} 61.
Bd4+ {[%clk 0:00:22.9]} 61... Kf7 {[%clk 0:00:21.3]} 62. c5 {[%clk 0:00:23.8]}
62... Ke6 {[%clk 0:00:21.8]} 63. Be5 {[%clk 0:00:23.4]} 63... Kd5 {[%clk
0:00:22.1]} 64. Bd4 {[%clk 0:00:23.5]} 64... Kxd4 {[%clk 0:00:11.7]} 65. c6
{[%clk 0:00:23.4]} 65... e3+ {[%clk 0:00:12.3]} 66. Kc1 {[%clk 0:00:20]} 66...
Ke4 {[%clk 0:00:10]} 67. c7 {[%clk 0:00:19.1]} 67... Kf3 {[%clk 0:00:10.3]} 68.
c8=Q {[%clk 0:00:18.6]} 68... Kf2 {[%clk 0:00:09.5]} 69. Qxf5 {[%clk 0:00:07.1]}
69... d2+ {[%clk 0:00:08.6]} 70. Kc2 {[%clk 0:00:06.4]} 70... e2 {[%clk
0:00:09.1]} 0-1

[Event "*** Titled Tuesday Blitz"]
[Site "Chess.com"]
[Date "2020.05.05"]
[Round "2"]
[White "EddieMarsalla"]
[Black "Grandelicious"]
[Result "0-1"]
[WhiteElo "2519"]
[BlackElo "2775"]
[TimeControl "180+1"]
[EndTime "10:19:49 PDT"]
[Termination "Grandelicious won on time"]

1. d4 {[%clk 0:03:00.9]} 1... Nf6 {[%clk 0:02:59.3]} 2. Bg5 {[%clk 0:03:01.1]}
2... Ne4 {[%clk 0:02:58.8]} 3. Bf4 {[%clk 0:03:01.4]} 3... d5 {[%clk 0:02:59.4]}
4. c3 {[%clk 0:03:01.1]} 4... c6 {[%clk 0:02:54.3]} 5. Nd2 {[%clk 0:03:00.5]}
5... Bf5 {[%clk 0:02:53.3]} 6. Ngf3 {[%clk 0:03:00.2]} 6... e6 {[%clk
0:02:51.5]} 7. e3 {[%clk 0:03:00.2]} 7... Be7 {[%clk 0:02:46]} 8. Qb3 {[%clk
0:02:59]} 8... Qc8 {[%clk 0:02:42.9]} 9. Be2 {[%clk 0:02:59.1]} 9... O-O {[%clk
0:02:40.6]} 10. O-O {[%clk 0:02:58.5]} 10... c5 {[%clk 0:02:40.1]} 11. Nxe4
{[%clk 0:02:57]} 11... Bxe4 {[%clk 0:02:41]} 12. Nd2 {[%clk 0:02:56.8]} 12...
Bg6 {[%clk 0:02:41.4]} 13. Rfe1 {[%clk 0:02:56.4]} 13... Nc6 {[%clk 0:02:39.9]}
14. Bf3 {[%clk 0:02:53.5]} 14... h6 {[%clk 0:02:10.2]} 15. Nf1 {[%clk
0:02:51.5]} 15... a6 {[%clk 0:01:59.3]} 16. Qd1 {[%clk 0:02:34.2]} 16... b5
{[%clk 0:01:57]} 17. a3 {[%clk 0:02:19.8]} 17... a5 {[%clk 0:01:51.1]} 18. Rc1
{[%clk 0:02:12.2]} 18... Qd7 {[%clk 0:01:46.2]} 19. dxc5 {[%clk 0:02:03.4]}
19... Bxc5 {[%clk 0:01:47.1]} 20. e4 {[%clk 0:01:59]} 20... Rad8 {[%clk
0:01:24.3]} 21. exd5 {[%clk 0:01:57.7]} 21... exd5 {[%clk 0:01:25.2]} 22. Be3
{[%clk 0:01:58]} 22... Bxe3 {[%clk 0:01:07.7]} 23. Nxe3 {[%clk 0:01:44.1]} 23...
d4 {[%clk 0:01:08]} 24. Bxc6 {[%clk 0:01:41.7]} 24... Qxc6 {[%clk 0:01:08.9]}
25. cxd4 {[%clk 0:01:42]} 25... Qd6 {[%clk 0:01:08.1]} 26. d5 {[%clk 0:01:39.4]}
26... Rfe8 {[%clk 0:01:06.1]} 27. h3 {[%clk 0:01:38.7]} 27... Qe5 {[%clk
0:01:01.1]} 28. Qd2 {[%clk 0:01:38.2]} 28... a4 {[%clk 0:00:59.8]} 29. Ng4
{[%clk 0:01:34.5]} 29... Qd6 {[%clk 0:00:49.8]} 30. Qd4 {[%clk 0:01:24.9]} 30...
Rxe1+ {[%clk 0:00:41.5]} 31. Rxe1 {[%clk 0:01:25.8]} 31... Kh7 {[%clk
0:00:38.7]} 32. Ne3 {[%clk 0:01:07.5]} 32... f5 {[%clk 0:00:35.8]} 33. f4 {[%clk
0:01:04.3]} 33... Re8 {[%clk 0:00:35.9]} 34. g3 {[%clk 0:01:00.6]} 34... Re4
{[%clk 0:00:34]} 35. Qd2 {[%clk 0:00:58.5]} 35... Qc5 {[%clk 0:00:30.3]} 36. Kf2
{[%clk 0:00:58.7]} 36... Bf7 {[%clk 0:00:27.2]} 37. Rc1 {[%clk 0:00:55.7]} 37...
Qa7 {[%clk 0:00:21.7]} 38. d6 {[%clk 0:00:54.4]} 38... Rd4 {[%clk 0:00:20.9]}
39. Qc2 {[%clk 0:00:51.6]} 39... Rxd6 {[%clk 0:00:18.8]} 40. Rd1 {[%clk
0:00:34.6]} 40... Bb3 {[%clk 0:00:16]} 41. Qxf5+ {[%clk 0:00:33.2]} 41... g6
{[%clk 0:00:16.5]} 42. Rxd6 {[%clk 0:00:06.7]} 42... gxf5 {[%clk 0:00:15.6]} 43.
g4 {[%clk 0:00:06.8]} 43... Qc5 {[%clk 0:00:13.2]} 44. Rd7+ {[%clk 0:00:07.2]}
44... Kg8 {[%clk 0:00:12.9]} 45. gxf5 {[%clk 0:00:07.7]} 45... Qc1 {[%clk
0:00:11.7]} 46. f6 {[%clk 0:00:06.6]} 46... Qxb2+ {[%clk 0:00:11.5]} 47. Kg3
{[%clk 0:00:05.8]} 47... Qxf6 {[%clk 0:00:11.5]} 48. Ng4 {[%clk 0:00:06.4]}
48... Qc3+ {[%clk 0:00:11.5]} 49. Kh4 {[%clk 0:00:06.2]} 49... Be6 {[%clk
0:00:10.4]} 50. Re7 {[%clk 0:00:01.9]} 50... Bxg4 {[%clk 0:00:09.9]} 51. Kxg4
{[%clk 0:00:02.4]} 51... Qxa3 {[%clk 0:00:09.2]} 52. Re8+ {[%clk 0:00:01.9]}
52... Kf7 {[%clk 0:00:09.4]} 53. Re5 {[%clk 0:00:02.8]} 53... Qd6 {[%clk
0:00:08.7]} 54. Rf5+ {[%clk 0:00:03]} 54... Kg6 {[%clk 0:00:08.5]} 55. Rxb5
{[%clk 0:00:02.3]} 55... Qd7+ {[%clk 0:00:08.6]} 56. f5+ {[%clk 0:00:03.2]}
56... Kf7 {[%clk 0:00:08.7]} 57. Rb6 {[%clk 0:00:04.1]} 57... a3 {[%clk
0:00:07]} 58. Rxh6 {[%clk 0:00:03.9]} 58... Qd4+ {[%clk 0:00:07.2]} 59. Kh5
{[%clk 0:00:04.3]} 59... a2 {[%clk 0:00:06.9]} 60. Rh7+ {[%clk 0:00:04.8]} 60...
Kf6 {[%clk 0:00:07.4]} 61. Rh6+ {[%clk 0:00:05.5]} 61... Kxf5 {[%clk 0:00:07.4]}
62. Ra6 {[%clk 0:00:03.8]} 62... a1=Q {[%clk 0:00:07.3]} 0-1

[Event "*** Titled Tuesday Blitz"]
[Site "Chess.com"]
[Date "2020.05.05"]
[Round "2"]
[White "orkan85"]
[Black "WoolworthsManly"]
[Result "1-0"]
[WhiteElo "2490"]
[BlackElo "2671"]
[TimeControl "180+1"]
[EndTime "10:19:49 PDT"]
[Termination "orkan85 won by resignation"]

1. e4 {[%clk 0:03:00.9]} 1... e5 {[%clk 0:02:59.6]} 2. Nf3 {[%clk 0:03:00.6]}
2... Nc6 {[%clk 0:03:00.1]} 3. Bc4 {[%clk 0:03:01]} 3... Bc5 {[%clk 0:02:59.5]}
4. O-O {[%clk 0:02:59.6]} 4... Nf6 {[%clk 0:02:59.8]} 5. d3 {[%clk 0:03:00.3]}
5... d6 {[%clk 0:02:59.6]} 6. c3 {[%clk 0:03:00.6]} 6... a6 {[%clk 0:02:59.8]}
7. a4 {[%clk 0:03:00.7]} 7... Ba7 {[%clk 0:02:59.7]} 8. Re1 {[%clk 0:03:01.3]}
8... O-O {[%clk 0:02:56.4]} 9. h3 {[%clk 0:02:58.2]} 9... h6 {[%clk 0:02:53.9]}
10. Nbd2 {[%clk 0:02:58.1]} 10... Ne7 {[%clk 0:02:41]} 11. Bb3 {[%clk
0:02:57.3]} 11... Ng6 {[%clk 0:02:40.4]} 12. d4 {[%clk 0:02:57.6]} 12... Nh5
{[%clk 0:02:31]} 13. Nf1 {[%clk 0:02:07.5]} 13... Nhf4 {[%clk 0:02:27.1]} 14.
Be3 {[%clk 0:02:00.8]} 14... Qf6 {[%clk 0:02:26.7]} 15. Ng3 {[%clk 0:01:58.7]}
15... Be6 {[%clk 0:02:17.6]} 16. Bc2 {[%clk 0:01:57.2]} 16... c6 {[%clk
0:02:03.1]} 17. Nf5 {[%clk 0:01:11.2]} 17... Bb8 {[%clk 0:01:39]} 18. g3 {[%clk
0:01:03.3]} 18... Nxh3+ {[%clk 0:01:35]} 19. Kg2 {[%clk 0:01:03.7]} 19... Ng5
{[%clk 0:01:35.3]} 20. Nxg5 {[%clk 0:01:03.9]} 20... hxg5 {[%clk 0:01:35.3]} 21.
Qh5 {[%clk 0:01:04.5]} 21... Bxf5 {[%clk 0:01:02]} 22. exf5 {[%clk 0:01:04]}
22... Nf4+ {[%clk 0:01:02.6]} 23. gxf4 {[%clk 0:01:03.2]} 23... gxf4 {[%clk
0:01:02.9]} 24. Rh1 {[%clk 0:01:01.5]} 24... Qh6 {[%clk 0:01:02.9]} 25. Qg4
{[%clk 0:00:43.4]} 25... Qf6 {[%clk 0:01:02.5]} 26. dxe5 {[%clk 0:00:34.1]}
26... dxe5 {[%clk 0:01:00.2]} 27. Qh5 {[%clk 0:00:31.4]} 27... Qh6 {[%clk
0:00:56.6]} 28. Qg4 {[%clk 0:00:25.9]} 28... Qf6 {[%clk 0:00:55.1]} 29. Rh5
{[%clk 0:00:20.6]} 29... Rd8 {[%clk 0:00:49.2]} 30. Rah1 {[%clk 0:00:19.3]}
30... Kf8 {[%clk 0:00:49.7]} 31. Rh8+ {[%clk 0:00:11.7]} 31... Ke7 {[%clk
0:00:49.9]} 32. Bc5+ {[%clk 0:00:11.7]} 32... Bd6 {[%clk 0:00:49.5]} 33. Bxd6+
{[%clk 0:00:10.1]} 33... Kxd6 {[%clk 0:00:48.7]} 34. Rd1+ {[%clk 0:00:10.1]}
34... Kc7 {[%clk 0:00:48.7]} 35. Rdxd8 {[%clk 0:00:10.7]} 35... Rxd8 {[%clk
0:00:49.6]} 36. Rxd8 {[%clk 0:00:10.7]} 36... Kxd8 {[%clk 0:00:50.5]} 37. Be4
{[%clk 0:00:10]} 37... Kc7 {[%clk 0:00:50]} 38. b4 {[%clk 0:00:09.8]} 38... Qh6
{[%clk 0:00:47.6]} 39. Kf1 {[%clk 0:00:08.9]} 39... Qf6 {[%clk 0:00:46.4]} 40.
Ke2 {[%clk 0:00:09.1]} 40... b6 {[%clk 0:00:46.6]} 41. Qg2 {[%clk 0:00:08.5]}
41... a5 {[%clk 0:00:45.6]} 42. Qf3 {[%clk 0:00:08.1]} 42... Qd6 {[%clk
0:00:44.6]} 43. b5 {[%clk 0:00:06.3]} 43... cxb5 {[%clk 0:00:41.3]} 44. axb5
{[%clk 0:00:07.2]} 44... a4 {[%clk 0:00:41.9]} 45. Qd3 {[%clk 0:00:07.1]} 45...
Qc5 {[%clk 0:00:42]} 46. Bc6 {[%clk 0:00:07.1]} 46... Qd6 {[%clk 0:00:39.2]} 47.
Qc4 {[%clk 0:00:06.6]} 47... Qe7 {[%clk 0:00:37.1]} 48. Qxa4 {[%clk 0:00:05.7]}
48... Qd8 {[%clk 0:00:34.3]} 49. Qa7+ {[%clk 0:00:05.7]} 49... Kd6 {[%clk
0:00:34.7]} 50. Qxf7 {[%clk 0:00:05.9]} 50... f3+ {[%clk 0:00:30.2]} 51. Kxf3
{[%clk 0:00:05.3]} 51... e4+ {[%clk 0:00:30.7]} 52. Ke3 {[%clk 0:00:05.2]} 52...
Qg5+ {[%clk 0:00:30.6]} 53. Kxe4 {[%clk 0:00:04.1]} 53... Qg4+ {[%clk
0:00:30.2]} 54. Ke3 {[%clk 0:00:04.3]} 54... Qg5+ {[%clk 0:00:29.5]} 55. Kd3
{[%clk 0:00:03.8]} 55... Qe7 {[%clk 0:00:04]} 56. Qd5+ {[%clk 0:00:03.6]} 56...
Kc7 {[%clk 0:00:04.1]} 57. Qe6 {[%clk 0:00:04.1]} 57... Qd8+ {[%clk 0:00:04.2]}
58. Qd7+ {[%clk 0:00:04.2]} 58... Qxd7+ {[%clk 0:00:04.3]} 59. Bxd7 {[%clk
0:00:05.1]} 59... Kxd7 {[%clk 0:00:05.2]} 60. Kd4 {[%clk 0:00:06]} 60... Kd6
{[%clk 0:00:05.8]} 61. c4 {[%clk 0:00:06.9]} 61... Kd7 {[%clk 0:00:05.9]} 62. c5
{[%clk 0:00:07.4]} 62... Kc7 {[%clk 0:00:06.7]} 63. c6 {[%clk 0:00:07.5]} 63...
Kd6 {[%clk 0:00:07]} 64. Kc4 {[%clk 0:00:07.5]} 64... Ke7 {[%clk 0:00:06.8]} 65.
Kd5 {[%clk 0:00:06.9]} 65... Ke8 {[%clk 0:00:07.4]} 66. Ke5 {[%clk 0:00:07.4]}
66... Kd8 {[%clk 0:00:08.3]} 67. f6 {[%clk 0:00:07.8]} 67... g6 {[%clk 0:00:08]}
68. f4 {[%clk 0:00:07.3]} 68... Ke8 {[%clk 0:00:07.6]} 69. Ke6 {[%clk
0:00:07.9]} 69... g5 {[%clk 0:00:07.5]} 70. fxg5 {[%clk 0:00:07.5]} 1-0

[Event "*** Titled Tuesday Blitz"]
[Site "Chess.com"]
[Date "2020.05.05"]
[Round "2"]
[White "Leo_C"]
[Black "ehrenfeld"]
[Result "1-0"]
[WhiteElo "2294"]
[BlackElo "2501"]
[TimeControl "180+1"]
[EndTime "10:19:49 PDT"]
[Termination "Leo_C won on time"]

1. d4 {[%clk 0:03:00.9]} 1... f5 {[%clk 0:02:59.2]} 2. Bg5 {[%clk 0:02:59.8]}
2... g6 {[%clk 0:02:58.9]} 3. Nc3 {[%clk 0:02:58.9]} 3... Bg7 {[%clk 0:02:58.7]}
4. h4 {[%clk 0:02:57.8]} 4... d6 {[%clk 0:02:56.8]} 5. e3 {[%clk 0:02:56.3]}
5... h6 {[%clk 0:02:55.7]} 6. Bf4 {[%clk 0:02:55.3]} 6... Nf6 {[%clk 0:02:56]}
7. Bc4 {[%clk 0:02:54.3]} 7... e6 {[%clk 0:02:55.6]} 8. Nge2 {[%clk 0:02:50.2]}
8... Nc6 {[%clk 0:02:53.6]} 9. Qd2 {[%clk 0:02:47.7]} 9... Bd7 {[%clk
0:02:52.4]} 10. O-O-O {[%clk 0:02:46.3]} 10... Qe7 {[%clk 0:02:42.3]} 11. d5
{[%clk 0:02:30]} 11... exd5 {[%clk 0:02:01.8]} 12. Nxd5 {[%clk 0:02:28.6]} 12...
Nxd5 {[%clk 0:02:01.6]} 13. Bxd5 {[%clk 0:02:28.6]} 13... O-O-O {[%clk
0:02:00.1]} 14. c3 {[%clk 0:02:25]} 14... Kb8 {[%clk 0:01:59.5]} 15. Nd4 {[%clk
0:02:23.4]} 15... Ne5 {[%clk 0:01:59.2]} 16. Kb1 {[%clk 0:02:15.8]} 16... c6
{[%clk 0:01:58.6]} 17. Bb3 {[%clk 0:02:14.9]} 17... Ka8 {[%clk 0:01:58.6]} 18.
Bg3 {[%clk 0:02:10.6]} 18... Bc8 {[%clk 0:01:57.7]} 19. Ka1 {[%clk 0:02:00.9]}
19... Rhe8 {[%clk 0:01:57]} 20. Rhe1 {[%clk 0:01:59.8]} 20... d5 {[%clk
0:01:53.3]} 21. f3 {[%clk 0:01:45.7]} 21... Nf7 {[%clk 0:01:48.7]} 22. Bc2
{[%clk 0:01:40.1]} 22... Nd6 {[%clk 0:01:48.1]} 23. h5 {[%clk 0:01:32.1]} 23...
c5 {[%clk 0:01:40.3]} 24. Bxd6 {[%clk 0:01:25.3]} 24... Qxd6 {[%clk 0:01:37.6]}
25. Ne2 {[%clk 0:01:20.3]} 25... g5 {[%clk 0:01:36.9]} 26. e4 {[%clk 0:01:16.3]}
26... fxe4 {[%clk 0:01:28.2]} 27. Bxe4 {[%clk 0:01:12]} 27... Be6 {[%clk
0:01:19.6]} 28. c4 {[%clk 0:01:07.3]} 28... d4 {[%clk 0:01:14.4]} 29. Qd3 {[%clk
0:01:05.3]} 29... Bf7 {[%clk 0:01:07.9]} 30. g4 {[%clk 0:01:01.4]} 30... Qa6
{[%clk 0:01:02.4]} 31. Rc1 {[%clk 0:00:58.8]} 31... Kb8 {[%clk 0:00:58.1]} 32.
Ng3 {[%clk 0:00:54.6]} 32... Be5 {[%clk 0:00:47.3]} 33. Nf5 {[%clk 0:00:54]}
33... Bf4 {[%clk 0:00:45]} 34. Rc2 {[%clk 0:00:48.6]} 34... Re6 {[%clk
0:00:43.8]} 35. Rce2 {[%clk 0:00:40.6]} 35... Rb6 {[%clk 0:00:42.1]} 36. b3
{[%clk 0:00:29]} 36... Qa5 {[%clk 0:00:42]} 37. Ne7 {[%clk 0:00:26.9]} 37... Ra6
{[%clk 0:00:38.9]} 38. Nd5 {[%clk 0:00:24.6]} 38... Be5 {[%clk 0:00:29.7]} 39.
Kb1 {[%clk 0:00:18.8]} 39... Bg7 {[%clk 0:00:29]} 40. Bg6 {[%clk 0:00:18]} 40...
Bxd5 {[%clk 0:00:27.7]} 41. cxd5 {[%clk 0:00:18.1]} 41... Bf6 {[%clk 0:00:24.8]}
42. Re8 {[%clk 0:00:17.7]} 42... Rd6 {[%clk 0:00:23.8]} 43. Rxd8+ {[%clk
0:00:17.8]} 43... Rxd8 {[%clk 0:00:23.5]} 44. Re2 {[%clk 0:00:17.9]} 44... a6
{[%clk 0:00:22.1]} 45. Re6 {[%clk 0:00:14.5]} 45... Bh8 {[%clk 0:00:19.5]} 46.
d6 {[%clk 0:00:14.9]} 46... Qb6 {[%clk 0:00:11.7]} 47. Qe4 {[%clk 0:00:11.3]}
47... c4 {[%clk 0:00:10.1]} 48. Re8 {[%clk 0:00:09.7]} 48... cxb3 {[%clk
0:00:05.7]} 49. Rxd8+ {[%clk 0:00:09.6]} 49... Qxd8 {[%clk 0:00:05]} 50. axb3
{[%clk 0:00:08.4]} 50... Bf6 {[%clk 0:00:02.5]} 51. Qe8 {[%clk 0:00:08.3]} 51...
Qxe8 {[%clk 0:00:01.4]} 52. Bxe8 {[%clk 0:00:08.5]} 52... Kc8 {[%clk 0:00:01.9]}
53. Kc2 {[%clk 0:00:08.2]} 53... b6 {[%clk 0:00:01.6]} 54. Kd3 {[%clk
0:00:06.9]} 54... Kd8 {[%clk 0:00:02.1]} 55. d7 {[%clk 0:00:07.2]} 55... a5
{[%clk 0:00:02]} 56. Kc4 {[%clk 0:00:07.2]} 56... Kc7 {[%clk 0:00:02.2]} 57. Kd3
{[%clk 0:00:06.8]} 57... Be5 {[%clk 0:00:01.8]} 58. Kc4 {[%clk 0:00:06.9]} 58...
Bf6 {[%clk 0:00:01.8]} 59. Kd3 {[%clk 0:00:06.5]} 59... b5 {[%clk 0:00:01.9]}
60. d8=Q+ {[%clk 0:00:05.8]} 60... Bxd8 {[%clk 0:00:01.5]} 61. Bxb5 {[%clk
0:00:06.7]} 61... Bf6 {[%clk 0:00:01.2]} 62. Ba4 {[%clk 0:00:06.6]} 62... Kb6
{[%clk 0:00:01.8]} 63. Ke4 {[%clk 0:00:06.9]} 63... Kc5 {[%clk 0:00:01.5]} 64.
Kd3 {[%clk 0:00:07.2]} 64... Kb4 {[%clk 0:00:01.1]} 65. Ke4 {[%clk 0:00:05.7]}
65... Bg7 {[%clk 0:00:01.5]} 66. Kd3 {[%clk 0:00:05.9]} 1-0